{"text_format":"1","workbook":"xlsx","n_sheets":1,"sheets":["8"],"not_rendered":{"charts":0,"images":0,"macros":0,"external_links":0,"defined_names":4,"comments":0,"pivot_tables":0},"unopened":[],"bounds":{"document_bytes":16777216,"sheet_cells":100000,"rows_first":2000,"rows_last":500,"rows_between":2000,"halvings":0,"cell_chars":16384,"cell_head_chars":4096},"cells_cut":0,"cells_raw":0,"read":"whole","date_system":"1900"}

{"sheet":"8","index":0,"n_rows":19,"n_cols":11,"rows_kept":19,"cut":false,"hidden":false,"merged":[[9,0,9,5]]}
["Фамилия Имя Отчество","Дни Рожд","Место знакомства,  степень отношений и другая информация","День","Месяц","Лет",null,{"$f":"TODAY()","v":"2015-06-10"},{"$f":"DAY(H1)","v":10},{"$f":"MONTH(H1)","v":6},{"$f":"YEAR(H1)","v":2015}]
["Баранов Геннадий Анатольевич","1987-01-08","Друг",{"$f":"IF(B2=\"\",\"\",DAY(B2))","v":8},{"$f":"IF(B2=\"\",\"\",MONTH(B2))","v":1},{"$f":"IF(B2=\"\",\"\",$K$1-YEAR(B2))","v":28},1]
["Бородина Елена Юрьевна","1992-04-07","Однокласник",7,4,23,2]
["Злобина Любовь Алексеевна","1988-06-23","Сосед",23,6,27,3]
["Иванов Павел Сергеевич","1987-06-02","Однокласник",2,6,28,4]
["Любимова Софья Андреевна","1979-09-17","Сослуживец",17,9,36,5]
["Серегин Станислав Евгеньевич","1986-09-19","Друг",19,9,29,6]
["Дудкин Павел Иванович","1988-10-29","Друг",29,10,27,7]
[]
["Данные дней рождений в текущем месяце"]
[]
["Фамилия Имя Отчество","Дни Рожд","Место знакомства,  степень отношений и другая информация","День","Месяц","Лет"]
[{"$f":"IFERROR(INDEX($A$2:$F$8,SMALL(IF($E$2:$E$8=$J$1,ROW($A$2:$A$8)-1),ROW(A1)),COLUMN(A1)),\"\")","v":"Злобина Любовь Алексеевна"},"Злобина Любовь Алексеевна","Злобина Любовь Алексеевна","Злобина Любовь Алексеевна","Злобина Любовь Алексеевна","Злобина Любовь Алексеевна",1]
["Злобина Любовь Алексеевна","Злобина Любовь Алексеевна","Злобина Любовь Алексеевна","Злобина Любовь Алексеевна","Злобина Любовь Алексеевна","Злобина Любовь Алексеевна",2]
["Злобина Любовь Алексеевна","Злобина Любовь Алексеевна","Злобина Любовь Алексеевна","Злобина Любовь Алексеевна","Злобина Любовь Алексеевна","Злобина Любовь Алексеевна",3]
["Злобина Любовь Алексеевна","Злобина Любовь Алексеевна","Злобина Любовь Алексеевна","Злобина Любовь Алексеевна","Злобина Любовь Алексеевна","Злобина Любовь Алексеевна",4]
["Злобина Любовь Алексеевна","Злобина Любовь Алексеевна","Злобина Любовь Алексеевна","Злобина Любовь Алексеевна","Злобина Любовь Алексеевна","Злобина Любовь Алексеевна",5]
["Злобина Любовь Алексеевна","Злобина Любовь Алексеевна","Злобина Любовь Алексеевна","Злобина Любовь Алексеевна","Злобина Любовь Алексеевна","Злобина Любовь Алексеевна",6]
["Злобина Любовь Алексеевна","Злобина Любовь Алексеевна","Злобина Любовь Алексеевна","Злобина Любовь Алексеевна","Злобина Любовь Алексеевна","Злобина Любовь Алексеевна",7]